fUSD/lending_fUSD_20241121
["ID","MTS","AMOUNT","RATE_DAILY","PERIOD"]
[342843032,1732176652254,-557.43682139,0.00043147,18]
[342843033,1732176652264,-500.0,0.00043147,18]
[342843034,1732176652278,-2390.25,0.00043147,18]
[342843035,1732176652290,-4211.02,0.00043147,18]
[342843036,1732176652300,-500.0,0.00043147,18]
[342843037,1732176652309,-1947.17,0.00043147,18]
[342843038,1732176652319,-910.83,0.00043147,18]
[342843039,1732176652329,-500.0,0.00043147,18]
[342843040,1732176652339,-837.78,0.00043147,18]
[342843041,1732176652350,-3097.2,0.00043147,18]
[342843042,1732176652360,-500.0,0.00043147,18]
[342843043,1732176652370,-500.0,0.00043147,18]
[342843044,1732176652379,-992.19,0.00043147,18]
[342843045,1732176652389,-2347.32,0.00043147,18]
[342843046,1732176652399,-5285.09,0.00043147,18]
[342843047,1732176652409,-1270.69,0.00043147,18]
[342843048,1732176652418,-8572.18,0.00043147,18]
[342843049,1732176652428,-2867.97,0.00043147,18]
[342843050,1732176652439,-1281.06,0.00043147,18]
[342843051,1732176652449,-500.0,0.00043147,18]
[342843052,1732176652459,-500.0,0.00043147,18]
[342843053,1732176652470,-6875.45,0.00043147,18]
[342843054,1732176652480,-500.0,0.00043147,18]
[342843055,1732176652489,-946.26,0.00043147,18]
[342843056,1732176652499,-8426.06,0.00043147,18]
[342843057,1732176652509,-500.0,0.00043147,18]
[342843058,1732176652522,-1808.16,0.00043147,18]
[342843059,1732176652531,-1355.65,0.00043147,18]
[342843060,1732176652541,-1390.31,0.00043147,18]
[342843061,1732176652550,-500.0,0.00043147,18]
[342843062,1732176652559,-500.0,0.00043147,18]
[342843063,1732176652569,-2713.67,0.00043147,18]
[342843064,1732176652578,-2935.7,0.00043147,18]
[342843065,1732176652588,-813.64,0.00043147,18]
[342843066,1732176652598,-8052.04,0.00043147,18]
[342843067,1732176652607,-500.0,0.00043147,18]
[342843068,1732176652617,-500.0,0.00043147,18]
[342843069,1732176652627,-500.0,0.00043147,18]
[342843070,1732176652636,-3654.89,0.00043147,18]
[342843071,1732176652645,-500.0,0.00043147,18]
[342843072,1732176652655,-500.0,0.00043147,18]
[342843073,1732176652664,-2525.72,0.00043147,18]
[342843074,1732176652673,-827.39,0.00043147,18]
[342843075,1732176652685,-500.0,0.00043147,18]
[342843076,1732176652695,-843.67,0.00043147,18]
[342843077,1732176652704,-1808.5,0.00043147,18]
[342843078,1732176652713,-500.0,0.00043147,18]
[342843079,1732176652723,-1198.35,0.00043147,18]
[342843080,1732176652732,-703.76,0.00043147,18]
[342843081,1732176652741,-1501.49,0.00043147,18]
[342843082,1732176652750,-500.0,0.00043147,18]
[342843083,1732176652760,-707.25,0.00043147,18]
[342843084,1732176652771,-2959.61,0.00043147,18]
[342843085,1732176652780,-500.0,0.00043147,18]
[342843086,1732176652790,-1434.92,0.00043147,18]
[342843087,1732176652799,-1082.04,0.00043147,18]
[342843088,1732176652809,-1401.49,0.00043147,18]
[342843089,1732176652818,-500.0,0.00043147,18]
[342843090,1732176652828,-530.16442379,0.00043147,18]
[342843091,1732176652837,-500.0,0.00043147,18]
[342843092,1732176652847,-1228.15,0.00043147,18]
[342843093,1732176652856,-15097.5,0.00043147,18]
[342843094,1732176652865,-3333.79,0.00043147,18]
[342843095,1732176652875,-500.0,0.00043147,18]
[342843096,1732176652884,-500.0,0.00043147,18]
[342843097,1732176652894,-179.34609502,0.00043185,28]
[342843098,1732176652903,-1528.82,0.00043205,30]
[342843099,1732176652912,-764.41,0.00043205,30]
[342843100,1732176652924,-764.41,0.00043205,30]
[342843101,1732176652933,-764.41,0.00043205,30]
[342843102,1732176652943,-764.41,0.00043205,30]
[342843103,1732176652955,-764.41,0.00043205,30]
[342843104,1732176652964,-764.41,0.00043205,30]
[342843105,1732176652975,-764.41,0.00043205,30]
[342843106,1732176652986,-764.41,0.00043205,30]
[342843107,1732176652996,-764.41,0.00043205,30]
[342843108,1732176653005,-764.41,0.00043205,30]
[342843109,1732176653015,-764.41,0.00043205,30]
[342843110,1732176653028,-764.41,0.00043205,30]
[342843111,1732176653037,-764.41,0.00043205,30]
[342843112,1732176653047,-764.41,0.00043205,30]
[342843113,1732176653057,-579.54,0.00043205,30]
[342843114,1732176653066,-764.41,0.00043205,30]
[342843115,1732176653076,-764.41,0.00043205,30]
[342843116,1732176653085,-764.41,0.00043205,30]
[342843117,1732176653095,-764.41,0.00043205,30]
[342843118,1732176653104,-764.41,0.00043223,30]
[342843119,1732176653114,-500.0,0.00043247,18]
[342843120,1732176653124,-500.0,0.00043247,18]
[342843121,1732176653133,-500.0,0.00043247,18]
[342843122,1732176653143,-500.0,0.00043247,18]
[342843123,1732176653153,-2535.35,0.00043247,18]
[342843124,1732176653163,-2701.22,0.00043247,18]
[342843125,1732176653173,-738.61,0.00043247,18]
[342843126,1732176653184,-666.63,0.00043247,18]
[342843127,1732176653194,-793.63,0.00043247,18]
[342843128,1732176653204,-1051.29,0.00043247,18]
[342843129,1732176653214,-2633.56,0.00043247,18]
[342843130,1732176653224,-500.0,0.00043247,18]
[342843131,1732176653235,-1691.64,0.00043247,18]
[342843132,1732176653244,-1991.21,0.00043247,18]
[342843133,1732176653254,-500.0,0.00043247,18]
[342843134,1732176653264,-1801.46,0.00043247,18]
[342843135,1732176653277,-553.23,0.00043247,18]
[342843136,1732176653286,-930.87,0.00043247,18]
[342843137,1732176653296,-500.0,0.00043247,18]
[342843138,1732176653306,-1614.18,0.00043247,18]
[342843139,1732176653315,-1180.2,0.00043247,18]
[342843140,1732176653325,-771.69,0.00043247,18]
[342843141,1732176653335,-1368.87,0.00043247,18]
[342843142,1732176653345,-559.19,0.00043247,18]
[342843143,1732176653355,-500.0,0.00043247,18]
[342843144,1732176653364,-1693.04,0.00043247,18]
[342843145,1732176653374,-536.49808172,0.00043247,18]
[342843146,1732176653384,-500.0,0.00043247,18]
[342843147,1732176653394,-501.37,0.00043247,18]
[342843148,1732176653403,-786.7,0.00043247,18]
[342843149,1732176653413,-1234.03,0.00043247,18]
[342843150,1732176653423,-742.52,0.00043247,18]
[342843151,1732176653432,-1230.89,0.00043247,18]
[342843152,1732176653441,-810.59,0.00043247,18]
[342843153,1732176653451,-2134.16,0.00043247,18]
[342843154,1732176653460,-970.99,0.00043247,18]
[342843155,1732176653469,-500.0,0.00043247,18]
[342843156,1732176653479,-500.0,0.00043247,18]
[342843157,1732176653489,-3846.69,0.00043247,18]
[342843158,1732176653498,-500.0,0.00043247,18]
[342843159,1732176653508,-1386.33,0.00043247,18]
[342843160,1732176653517,-500.0,0.00043247,18]
[342843161,1732176653528,-2323.29,0.00043247,18]
[342843162,1732176653538,-500.0,0.00043247,18]
[342843163,1732176653547,-500.0,0.00043247,18]
[342843164,1732176653557,-3508.91,0.00043247,18]
[342843165,1732176653567,-1372.58,0.00043247,18]
[342843166,1732176653576,-866.98,0.00043247,18]
[342843167,1732176653590,-500.0,0.00043247,18]
[342843168,1732176653599,-1806.44,0.00043247,18]
[342843169,1732176653609,-500.0,0.00043247,18]
[342843170,1732176653619,-500.0,0.00043247,18]
[342843171,1732176653628,-500.0,0.00043247,18]
[342843172,1732176653638,-531.75,0.00043247,18]
[342843173,1732176653647,-743.43,0.00043247,18]
[342843174,1732176653656,-1917.33,0.00043247,18]
[342843175,1732176653668,-1280.87,0.00043247,18]
[342843176,1732176653682,-856.34,0.00043247,18]
[342843177,1732176653692,-2512.67,0.00043247,18]
[342843178,1732176653702,-500.0,0.00043247,18]
[342843179,1732176653711,-500.0,0.00043247,18]
[342843180,1732176653720,-4218.09,0.00043247,18]
[342843181,1732176653730,-500.0,0.00043247,18]
[342843182,1732176653739,-3316.6,0.00043247,18]
[342843183,1732176653749,-500.0,0.00043247,18]
[342843184,1732176653758,-518.8,0.00043247,18]
[342843185,1732176653768,-1068.4,0.00043247,18]
[342843186,1732176653778,-500.0,0.00043247,18]
[342843187,1732176653787,-1185.85,0.00043247,18]
[342843188,1732176653796,-1666.62,0.00043247,18]
[342843189,1732176653806,-1189.25,0.00043247,18]
[342843190,1732176653815,-500.0,0.00043247,18]
[342843191,1732176653825,-500.0,0.00043247,18]
[342843192,1732176653835,-500.0,0.00043247,18]
[342843193,1732176653845,-1514.38,0.00043247,18]
[342843194,1732176653854,-1413.9,0.00043247,18]
[342843195,1732176653864,-500.0,0.00043247,18]
[342843196,1732176653875,-835.83,0.00043247,18]
[342843197,1732176654168,-500.0,0.00043247,18]
[342843198,1732176654234,-1130.33,0.00043247,18]
[342843199,1732176654244,-736.2,0.00043247,18]
[342843200,1732176654254,-500.0,0.00043247,18]
[342843201,1732176654263,-881.69,0.00043247,18]
[342843202,1732176654273,-2905.88,0.00043247,18]
[342843203,1732176654282,-553.96,0.00043247,18]
[342843204,1732176654292,-500.0,0.00043247,18]
[342843205,1732176654303,-2388.19,0.00043247,18]
[342843206,1732176654312,-1185.08,0.00043247,18]
[342843207,1732176654321,-500.0,0.00043247,18]
[342843208,1732176654332,-1227.28,0.00043247,18]
[342843209,1732176654342,-390.84273991,0.00043247,18]
[342843210,1732176654351,-500.0,0.00043247,18]
[342843211,1732176654361,-500.0,0.00043247,18]
[342843212,1732176654370,-500.0,0.00043247,18]
[342843213,1732176654380,-3322.41,0.00043247,18]
[342843214,1732176654396,-1058.97,0.00043247,18]
[342843215,1732176654407,-7838.88061455,0.00043247,15]
[342843216,1732176654418,-500.0,0.00043273,16]
[342843217,1732176654428,-500.0,0.00043273,18]
[342843218,1732176654438,-500.0,0.00043273,18]
[342843219,1732176654449,-542.19278471,0.00043273,18]
[342843220,1732176654459,-929.68,0.00043273,18]
[342843221,1732176654469,-499.63796091,0.00043273,18]
[342843222,1732176654479,-500.0,0.00043273,18]
[342843223,1732176654490,-500.0,0.00043273,18]
[342843224,1732176654500,-500.0,0.00043273,18]
[342843225,1732176654511,-500.0,0.00043273,18]
[342843226,1732176654522,-500.0,0.00043273,18]
[342843227,1732176654537,-500.0,0.00043273,18]
[342843228,1732176654546,-1198.44,0.00043273,18]
[342843229,1732176654556,-177.36109307,0.00043273,18]
[342843230,1732176654566,-500.0,0.00043273,18]
[342843231,1732176654575,-500.0,0.00043273,18]
[342843232,1732176654585,-500.0,0.00043273,18]
[342843233,1732176654595,-500.0,0.00043273,18]
[342843234,1732176654604,-1497.0,0.00043273,18]
[342843235,1732176654615,-500.0,0.00043273,18]
[342843236,1732176654624,-500.0,0.00043273,18]
[342843237,1732176654635,-500.0,0.00043273,18]
[342843238,1732176654644,-500.0,0.00043273,18]
[342843239,1732176654654,-1553.39,0.00043273,18]
[342843240,1732176654663,-500.0,0.00043273,18]
[342843241,1732176654672,-1417.17,0.00043273,18]
[342843242,1732176654682,-617.79,0.00043273,18]
[342843243,1732176654692,-2406.98,0.00043273,18]
[342843244,1732176654702,-621.38,0.00043273,18]
[342843245,1732176654711,-500.0,0.00043273,18]
[342843246,1732176654721,-500.0,0.00043273,18]
[342843247,1732176654731,-500.0,0.00043273,18]
[342843248,1732176654741,-500.0,0.00043273,18]
[342843249,1732176654750,-1620.51,0.00043273,18]
[342843250,1732176654760,-5098.83,0.00043273,18]
[342843251,1732176654769,-684.17,0.00043286,18]
[342843252,1732176654782,-5460.77,0.00043287,120]
[342843253,1732176654791,-500.0,0.00043287,18]
[342843254,1732176654800,-1156.4,0.00043287,18]
[342843255,1732176654810,-500.0,0.00043287,18]
[342843256,1732176654820,-1110.1,0.00043287,18]
[342843257,1732176654829,-735.8,0.00043287,18]
[342843258,1732176654839,-1424.8,0.00043287,18]
[342843259,1732176654849,-954.83,0.00043287,18]
[342843260,1732176654858,-1233.17,0.00043287,18]
[342843261,1732176654868,-743.64,0.00043287,18]
[342843262,1732176654877,-945.64,0.00043287,18]
[342843263,1732176654887,-620.35,0.00043287,18]
[342843264,1732176654896,-1020.25,0.00043287,18]
[342843265,1732176654905,-718.31,0.00043287,18]
[342843266,1732176654914,-963.26,0.00043287,18]
[342843267,1732176654924,-500.0,0.00043287,18]
[342843268,1732176654935,-1720.92,0.00043287,18]
[342843269,1732176654946,-709.96,0.00043287,18]
[342843270,1732176654963,-1681.51,0.00043287,18]
[342843271,1732176654973,-718.13,0.00043287,18]
[342843272,1732176654982,-589.21,0.00043287,18]
[342843273,1732176654993,-1498.97,0.00043287,18]
[342843274,1732176655002,-500.0,0.00043287,18]
[342843275,1732176655011,-1277.09,0.00043287,18]
[342843276,1732176655023,-1595.3,0.00043287,18]
[342843277,1732176655034,-1010.93,0.00043287,18]
[342843278,1732176655044,-537.11,0.00043287,18]
[342843279,1732176655053,-675.03,0.00043287,18]
[342843280,1732176655063,-500.0,0.00043287,18]
[342843281,1732176655073,-808.57,0.00043287,18]
[342843282,1732176655082,-500.0,0.00043287,18]
[342843283,1732176655092,-582.82,0.00043287,18]
[342843284,1732176655101,-500.0,0.00043287,18]
[342843285,1732176655112,-500.0,0.00043287,18]
[342843286,1732176655121,-1919.54,0.00043287,18]
[342843287,1732176655131,-1132.56,0.00043287,18]
[342843288,1732176655140,-215.0182091,0.00043321,8]
[342843289,1732176655150,-3552.33,0.00043321,18]
[342843290,1732176655160,-522.61,0.00043321,18]
[342843291,1732176655170,-955.93,0.00043321,18]
[342843292,1732176655180,-500.0,0.00043321,18]
[342843293,1732176655189,-377.3,0.00043334,30]
[342843294,1732176655198,-150.97,0.00043334,30]
[342843295,1732176655208,-600.0,0.000434,15]
[342843296,1732176655217,-500.0,0.00043421,18]
[342843297,1732176655227,-1108.59,0.00043421,18]
[342843298,1732176655236,-500.0,0.00043421,18]
[342843299,1732176655246,-18688.3,0.00043421,18]
[342843300,1732176655256,-500.0,0.00043421,18]
[342843301,1732176655266,-221.02879294,0.00043421,18]
[342843302,1732176655278,-500.0,0.00043421,18]
[342843303,1732176655288,-500.0,0.00043421,18]
[342843304,1732176655297,-1224.82,0.00043421,18]
[342843305,1732176655307,-401.05727379,0.00043421,18]
[342843306,1732176655316,-632.82,0.00043421,18]
[342843307,1732176655326,-629.22,0.00043421,18]
[342843308,1732176655335,-500.0,0.00043421,18]
[342843309,1732176655345,-695.9,0.00043421,18]
[342843310,1732176655355,-500.0,0.00043421,18]
[342843311,1732176655365,-500.0,0.00043421,18]
[342843312,1732176655375,-1312.76,0.00043421,18]
[342843313,1732176655385,-500.0,0.00043421,18]
[342843314,1732176655395,-500.0,0.00043421,18]
[342843315,1732176655404,-500.0,0.00043421,18]
[342843316,1732176655414,-750.07,0.00043421,18]
[342843317,1732176655423,-805.26,0.00043421,18]
[342843318,1732176655433,-1363.54,0.00043421,18]
[342843319,1732176655443,-500.0,0.00043421,18]
[342843320,1732176655452,-500.0,0.00043421,18]
[342843321,1732176655462,-500.0,0.00043421,18]
[342843322,1732176655471,-500.0,0.00043421,18]
[342843323,1732176655481,-500.0,0.00043421,18]
[342843324,1732176655490,-3231.56,0.00043421,18]
[342843325,1732176655500,-367.74,0.00043421,7]
[342843326,1732176655509,-5497.61,0.00043421,18]
[342843327,1732176655519,-500.0,0.00043421,18]
[342843328,1732176655531,-500.0,0.00043421,18]
[342843329,1732176655541,-500.0,0.00043421,18]
[342843330,1732176655552,-500.0,0.00043421,18]
[342843331,1732176655561,-169.12,0.00043421,18]
[342843332,1732176655570,-500.0,0.00043421,18]
[342843333,1732176655580,-1126.77,0.00043421,18]
[342843334,1732176655590,-1119.85,0.00043421,18]
[342843335,1732176655599,-633.44,0.00043421,18]
[342843336,1732176655609,-500.0,0.00043421,18]
[342843337,1732176655618,-500.0,0.00043421,18]
[342843338,1732176655627,-658.75,0.00043421,18]
[342843339,1732176655637,-1769.73,0.00043421,18]
[342843340,1732176655647,-1093.44,0.00043421,18]
[342843341,1732176655656,-6255.25,0.00043421,18]
[342843342,1732176655666,-500.0,0.00043421,18]
[342843343,1732176655675,-11166.38,0.00043421,18]
[342843344,1732176655685,-500.0,0.00043421,18]
[342843345,1732176655694,-500.0,0.00043421,18]
[342843346,1732176655704,-500.0,0.00043421,18]
[342843347,1732176655715,-2021.05,0.00043421,18]
[342843348,1732176655724,-1734.43,0.00043421,18]
[342843349,1732176655734,-48265.3,0.00043421,18]
[342843350,1732176655743,-690.66,0.00043421,18]
[342843351,1732176655753,-500.0,0.00043421,18]
[342843352,1732176655762,-719.15,0.00043421,18]
[342843353,1732176655771,-1921.16,0.00043421,18]
[342843354,1732176655782,-991.75,0.00043421,18]
[342843355,1732176655791,-2229.18,0.00043421,18]
[342843356,1732176655802,-850.88,0.00043421,18]
[342843357,1732176655812,-1501.26,0.00043421,18]
[342843358,1732176655821,-500.0,0.00043421,18]
[342843359,1732176655831,-500.0,0.00043421,18]
[342843360,1732176655841,-500.0,0.00043421,18]
[342843361,1732176655851,-779.44,0.00043421,18]
[342843362,1732176655860,-2234.01,0.00043421,18]
[342843363,1732176655870,-664.4,0.00043421,18]
[342843364,1732176655880,-582.82,0.00043421,18]
[342843365,1732176655891,-500.0,0.00043421,18]
[342843366,1732176655900,-500.0,0.00043421,18]
[342843367,1732176655910,-500.0,0.00043421,18]
[342843368,1732176655919,-1118.68,0.00043421,18]
[342843369,1732176655928,-1447.77,0.00043421,18]
[342843370,1732176655938,-1255.38,0.00043421,18]
[342843371,1732176655949,-1672.39,0.00043421,18]
[342843372,1732176655960,-328.84258014,0.00043421,18]
[342843373,1732176655969,-35263.6,0.00043421,18]
[342843374,1732176655979,-500.0,0.00043421,18]
[342843375,1732176655989,-500.0,0.00043421,18]
[342843376,1732176655998,-500.0,0.00043421,18]
[342843377,1732176656008,-2137.58,0.00043421,18]
[342843378,1732176656018,-500.0,0.00043421,18]
[342843379,1732176656030,-3282.65,0.00043421,18]
[342843380,1732176656039,-2009.54,0.00043421,18]
[342843381,1732176656049,-580.94,0.00043421,18]
[342843382,1732176656059,-500.0,0.00043421,18]
[342843383,1732176656068,-5001.93,0.00043421,18]
[342843384,1732176656077,-3385.18,0.00043421,18]
[342843385,1732176656086,-644.29,0.00043421,18]
[342843386,1732176656096,-500.0,0.00043421,18]
[342843387,1732176656105,-1921.19,0.00043421,18]
[342843388,1732176656115,-500.0,0.00043421,18]
[342843389,1732176656124,-500.0,0.00043421,18]
[342843390,1732176656134,-1910.08,0.00043421,18]
[342843391,1732176656144,-1633.91,0.00043421,18]
[342843392,1732176656153,-500.0,0.00043421,18]
[342843393,1732176656163,-584.61,0.00043421,18]
[342843394,1732176656172,-953.5,0.00043421,18]
[342843395,1732176656182,-629.89,0.00043421,18]
[342843396,1732176656192,-1711.06,0.00043421,18]
[342843397,1732176656202,-500.0,0.00043421,18]
[342843398,1732176656211,-523.64,0.00043421,18]
[342843399,1732176656221,-500.0,0.00043421,18]
[342843400,1732176656231,-4029.65,0.00043421,18]
[342843401,1732176656240,-500.0,0.00043421,18]
[342843402,1732176656250,-1511.64,0.00043421,18]
[342843403,1732176656259,-500.0,0.00043421,18]
[342843404,1732176656270,-699.43,0.00043421,18]
[342843405,1732176656281,-4187.73,0.00043421,18]
[342843406,1732176656291,-2294.51,0.00043421,18]
[342843407,1732176656301,-2457.99,0.00043421,18]
[342843408,1732176656311,-500.0,0.00043421,18]
[342843409,1732176656321,-500.0,0.00043421,18]
[342843410,1732176656332,-1502.09,0.00043421,18]
[342843411,1732176656342,-1432.32,0.00043421,18]
[342843412,1732176656351,-2000.0,0.00043421,30]
[342843413,1732176656361,-1479.36,0.00043421,18]
[342843414,1732176656371,-695.26,0.00043421,18]
[342843415,1732176656380,-500.0,0.00043421,18]
[342843416,1732176656389,-1474.33,0.00043421,18]
[342843417,1732176656399,-500.0,0.00043421,18]
[342843418,1732176656410,-12132.15,0.00043421,18]
[342843419,1732176656420,-1285.5,0.00043421,18]
[342843420,1732176656430,-500.0,0.00043421,18]
[342843421,1732176656440,-934.1,0.00043421,18]
[342843422,1732176656451,-500.0,0.00043421,18]
[342843423,1732176656460,-6335.85,0.00043421,18]
[342843424,1732176656469,-516.65,0.00043421,18]
[342843425,1732176656478,-500.0,0.00043421,18]
[342843426,1732176656488,-1536.85,0.00043421,18]
[342843427,1732176656497,-2007.82,0.00043421,18]
[342843428,1732176656507,-5422.34,0.00043421,18]
[342843429,1732176656516,-500.0,0.00043421,18]
[342843430,1732176656527,-1335.19,0.00043421,7]
[342843431,1732176656536,-500.0,0.00043421,18]
[342843432,1732176656546,-598.95,0.00043421,18]
[342843433,1732176656555,-500.0,0.00043421,18]
[342843434,1732176656564,-500.0,0.00043421,18]
[342843435,1732176656574,-852.04,0.00043421,18]
[342843436,1732176656583,-500.0,0.00043421,18]
[342843437,1732176656593,-1031.03,0.00043421,18]
[342843438,1732176656602,-1690.4,0.00043421,18]
[342843439,1732176656706,-500.0,0.00043421,18]
[342843440,1732176656715,-500.0,0.00043421,18]
[342843441,1732176656724,-535.44,0.00043421,18]
[342843442,1732176656733,-1384.02,0.00043421,18]
[342843443,1732176656743,-2300.55,0.00043421,18]
[342843444,1732176656753,-500.0,0.00043421,18]
[342843445,1732176656762,-500.0,0.00043421,18]
[342843446,1732176656771,-576.14,0.00043421,18]
[342843447,1732176656780,-500.0,0.00043421,18]
[342843448,1732176656789,-1119.42,0.00043421,18]
[342843449,1732176656798,-500.0,0.00043421,18]
[342843450,1732176656807,-500.0,0.00043421,18]
[342843451,1732176656817,-500.0,0.00043421,18]
[342843452,1732176656826,-2204.21,0.00043421,18]
[342843453,1732176656836,-5138.12,0.00043421,18]
[342843454,1732176656845,-888.36,0.00043421,18]
[342843455,1732176656855,-5037.89,0.00043421,18]
[342843456,1732176656865,-1925.82,0.00043421,18]
[342843457,1732176656874,-4067.65,0.00043421,18]
[342843458,1732176656883,-515.76,0.00043421,18]
[342843459,1732176656892,-573.25,0.00043421,18]
[342843460,1732176656902,-500.0,0.00043421,18]
[342843461,1732176656912,-1251.3,0.00043421,18]
[342843462,1732176656922,-500.0,0.00043421,18]
[342843463,1732176656931,-500.0,0.00043421,18]
[342843464,1732176656941,-68231.94,0.00043421,5]
[342843465,1732176656953,-500.0,0.00043421,18]
[342843466,1732176656962,-3764.75,0.00043421,18]
[342843467,1732176656971,-6281.23,0.00043421,18]
[342843468,1732176656981,-500.0,0.00043421,18]
[342843469,1732176656990,-500.0,0.00043421,18]
[342843470,1732176656999,-2390.25,0.00043421,18]
[342843471,1732176657008,-4211.02,0.00043421,18]
[342843472,1732176657017,-500.0,0.00043421,18]
[342843473,1732176657030,-1947.17,0.00043421,18]
[342843474,1732176657039,-910.83,0.00043421,18]
[342843475,1732176657048,-500.0,0.00043421,18]
[342843476,1732176657058,-837.78,0.00043421,18]
[342843477,1732176657067,-3097.2,0.00043421,18]
[342843478,1732176657076,-500.0,0.00043421,18]
[342843479,1732176657086,-992.19,0.00043421,18]
[342843480,1732176657095,-2347.32,0.00043421,18]
[342843481,1732176657105,-5285.09,0.00043421,18]
[342843482,1732176657116,-1270.69,0.00043421,18]
[342843483,1732176657126,-8572.18,0.00043421,18]
[342843484,1732176657136,-1281.06,0.00043421,18]
[342843485,1732176657145,-2867.97,0.00043421,18]
[342843486,1732176657155,-500.0,0.00043421,18]
[342843487,1732176657164,-500.0,0.00043421,18]
[342843488,1732176657174,-6875.45,0.00043421,18]
[342843489,1732176657183,-500.0,0.00043421,18]
[342843490,1732176657193,-946.26,0.00043421,18]
[342843491,1732176657203,-8426.06,0.00043421,18]
[342843492,1732176657212,-500.0,0.00043421,18]
[342843493,1732176657222,-1808.16,0.00043421,18]
[342843494,1732176657231,-1355.65,0.00043421,18]
[342843495,1732176657241,-1390.31,0.00043421,18]
[342843496,1732176657250,-500.0,0.00043421,18]
[342843497,1732176657260,-500.0,0.00043421,18]
[342843498,1732176657270,-2713.67,0.00043421,18]
[342843499,1732176657281,-2935.7,0.00043421,18]
[342843500,1732176657291,-813.64,0.00043421,18]
[342843501,1732176657301,-8052.04,0.00043421,18]
[342843502,1732176657310,-186.65022654,0.00043421,18]
[342843503,1732176657320,-500.0,0.00043421,18]
[342843504,1732176657329,-500.0,0.00043421,18]
[342843505,1732176657339,-3654.89,0.00043421,18]
[342843506,1732176657349,-288.99523737,0.00043421,18]
[342843507,1732176657358,-500.0,0.00043421,18]
[342843508,1732176657369,-2525.72,0.00043421,18]
[342843509,1732176657378,-827.39,0.00043421,18]
[342843510,1732176657388,-500.0,0.00043421,18]
[342843511,1732176657397,-843.67,0.00043421,18]
[342843512,1732176657407,-1808.5,0.00043421,18]
[342843513,1732176657416,-500.0,0.00043421,18]
[342843514,1732176657426,-1198.35,0.00043421,18]
[342843515,1732176657435,-703.76,0.00043421,18]
[342843516,1732176657445,-1501.49,0.00043421,18]
[342843517,1732176657454,-707.25,0.00043421,18]
[342843518,1732176657464,-500.0,0.00043421,18]
[342843519,1732176657474,-2959.61,0.00043421,18]
[342843520,1732176657484,-500.0,0.00043421,18]
[342843521,1732176657492,-1434.92,0.00043421,18]
[342843522,1732176657501,-1082.04,0.00043421,18]
[342843523,1732176657510,-1401.49,0.00043421,18]
[342843524,1732176657519,-500.0,0.00043421,18]
[342843525,1732176657538,-500.0,0.00043421,18]
[342843526,1732176657547,-1228.15,0.00043421,18]
[342843527,1732176657557,-15097.5,0.00043421,18]
[342843528,1732176657567,-3333.79,0.00043421,18]
[342843529,1732176657577,-500.0,0.00043421,18]
[342843530,1732176657587,-500.0,0.00043421,18]
[342843531,1732176657596,-668.4291,0.00043426,2]